Cogmind - Beta 11.1 @@@ ROGUE MODE // 2022.09.03 @ 15:37:44 Player: Richard Blunt Result: Core destroyed Performance ------------- Evolutions (5) 2500 Regions Visited (8) 1600 Robots Destroyed (103) 515 Value Destroyed (2930) 2930 Prototype IDs (11) 220 Alien Tech Used (0) 0 Bonus (371) 371 TOTAL SCORE: 8136 Bonus ------- High Alert Combat Kills 334 Follower Combat Kills 37 Cogmind --------- Core Integrity 0/1000 Matter 257/300 Energy 100/100 System Corruption 2% Temperature Cool (0) Movement Core (50) Location -5/Factory Parts ------- > --- POWER (1) -------- (None) > --- PROPULSION (5) --- (None) > --- UTILITY (9) ------ System Shield > --- WEAPON (2) ------- (None) > --- INVENTORY (5) ---- Surge Thruster Nuclear Pulse Thruster Biomechanical Wings Improved Coolant Injector Improved Sensor Array Peak State ------------ > --- POWER ------------ Light Deuterium Engine > --- PROPULSION ------- Improved Flight Unit Improved Flight Unit Improved Flight Unit Biomechanical Wings Biomechanical Wings > --- UTILITY ---------- Small Storage Unit Advanced Sensor Array Advanced Signal Interpreter Transmission Jammer Reaction Control System Hacking Suite Hacking Suite Hacking Suite System Shield > --- WEAPON ----------- Power Maul Spear > --- INVENTORY -------- Surge Thruster Nuclear Pulse Thruster Biomechanical Wings Improved Sensor Array Transmission Jammer Flak Gun Coil Gun Mini Grenade Launcher [Rating: 65] Favorites ----------- Power Improved Ion Engine Engine Improved Ion Engine Power Core Nuclear Core Propulsion Improved Flight Unit Treads Light Treads Leg Aluminum Leg Wheel Armored Wheel Flight Unit Improved Flight Unit Utility Hacking Suite Device Improved Heat Sink Storage High-capacity Storage Unit Processor Improved Signal Interpreter Hackware Hacking Suite Protection Light Armor Plating Weapon Autogun Energy Gun Medium Laser Ballistic Gun Autogun Ballistic Cannon Improved Light Cannon Launcher Mini Grenade Launcher Special Weapon Mining Laser Impact Weapon Maul Slashing Weapon Katana Piercing Weapon Spear Build | -11 -10 -9 -9 -8 -7 -6 -6 -5 ------- Run | Scr Mat Mat Sto Mat Fac Fac Ext Fac Slots Evolved 10 | . . 2 . 2 2 2 . 2 Power . | . . . . . . . . . Propulsion 3 | . . 1 . 1 . . . 1 Utility 7 | . . 1 . 1 2 2 . 1 Weapon . | . . . . . . . . . Parts Attached 166 | 7 19 36 32 22 18 14 2 16 Power 13 | 1 2 3 . 2 2 2 1 . Engine 12 | 1 2 3 . 2 1 2 1 . Core 1 | . . . . . 1 . . . Reactor . | . . . . . . . . . Propulsion 29 | 2 2 6 7 5 4 1 . 2 Treads 10 | . 2 2 2 4 . . . . Leg 3 | 2 . 1 . . . . . . Wheel 9 | . . 3 5 1 . . . . Hover . | . . . . . . . . . Flight 7 | . . . . . 4 1 . 2 Utility 42 | 2 2 8 6 3 8 5 1 7 Device 15 | 1 1 . 1 2 3 . 1 6 Storage 5 | 1 1 1 1 . 1 . . . Processor 5 | . . 1 . . 1 2 . 1 Hackware 5 | . . . . . 3 2 . . Protection 12 | . . 6 4 1 . 1 . . Artifact . | . . . . . . . . . Weapon 82 | 2 13 19 19 12 4 6 . 7 Energy Gun 5 | . 4 1 . . . . . . Energy Cannon . | . . . . . . . . . Ballistic Gun 28 | 2 5 9 3 1 2 2 . 4 Ballistic Cannon 13 | . . 1 7 5 . . . . Launcher 6 | . . 1 1 2 . 1 . 1 Special Weapon 1 | . 1 . . . . . . . Impact Weapon 25 | . 3 7 8 4 . 2 . 1 Slashing Weapon 1 | . . . . . 1 . . . Piercing Weapon 3 | . . . . . 1 1 . 1 Special Melee Weapon . | . . . . . . . . . Unidentified Prototypes 4 | . . . 2 . 1 . . 1 Parts Lost 32 | . 2 4 7 1 . 4 1 13 Power 3 | . . 1 . . . 1 . 1 Propulsion 8 | . . 1 2 . . 1 . 4 Utility 13 | . 1 2 3 1 . 1 1 4 Weapon 8 | . 1 . 2 . . 1 . 4 Highest Loss Streak 13 | . 1 1 4 1 . 2 1 13 To Critical Strikes . | . . . . . . . . . Average Slot Usage (%) 97 | . 99 98 96 95 99 95 100 87 Engine 9 | . 13 10 11 9 6 4 6 4 Treads 9 | . 24 5 11 17 . . . . Wheel 11 | . . 26 21 18 . . . . Flight 8 | . . . . . 29 25 26 25 Device 8 | . 13 6 1 7 8 6 11 13 Storage 11 | . 14 11 14 17 7 6 6 4 Processor 2 | . . 1 . . 6 11 7 5 Hackware 7 | . . . . . 21 25 26 21 Protection 5 | . . 13 15 6 . 1 . . Energy Gun 1 | . 5 . . . . . . . Ballistic Gun 8 | . 16 17 5 4 6 1 . . Ballistic Cannon 3 | . . . 12 10 . . . . Impact Weapon 3 | . 4 4 3 3 . 3 6 4 Piercing Weapon 1 | . . . . . . 5 6 4 Naked Turns . | . . . . . . . . . Heaviest Build 70 | 13 33 59 61 70 67 19 19 18 Greatest Support 40 | 20 40 40 40 24 24 20 20 27 Greatest Overweight (x) 5 | . . 2 5 2 2 . . 1 Average Overweight (x) . | . . 1 1 2 . . . . Largest Inventory Capacity 20 | 8 15 20 20 20 20 8 8 8 Average Capacity 14 | 7 14 16 20 20 8 8 8 7 Most Carried 20 | 7 15 20 20 20 20 8 8 8 Average Carried 13 | 4 12 16 19 19 8 7 8 6 Final Capacity 20 | 8 15 20 20 20 8 8 8 5 Final Carried 20 | 7 15 19 20 20 8 8 8 5 Class Distribution -------------------- 68% | Mutant 21% | Hacker-Sprinter 9% | Hacker-Scout Dominant Class ---------------- Mutant | -10/Materials Mutant | -9/Materials Mutant | -9/Storage Mutant | -8/Materials Hacker-Sprinter | -7/Factory Hacker-Scout | -6/Factory Hacker-Sprinter | -6/Extension Hacker-Sprinter | -5/Factory Resources | -11 -10 -9 -9 -8 -7 -6 -6 -5 ----------- Run | Scr Mat Mat Sto Mat Fac Fac Ext Fac Matter Collected 3382 | 281 242 891 868 558 88 357 32 65 Remotely . | . . . . . . . . . Salvage Created 3377 | 28 361 920 698 799 88 364 53 66 Parts 215 | 7 24 62 40 47 4 19 6 6 Haulers Intercepted 3 | . . . 1 1 . 1 . . Recyclers Shooed 2 | . . . . 1 . . . 1 Parts Field Recycled . | . . . . . . . . . Retrieved Matter . | . . . . . . . . . Parts Self-Destructed . | . . . . . . . . . Prevented . | . . . . . . . . . Kills | -11 -10 -9 -9 -8 -7 -6 -6 -5 ------- Run | Scr Mat Mat Sto Mat Fac Fac Ext Fac Combat Hostiles Destroyed 76 | . 9 23 19 21 . 3 . 1 Melee 2 | . . . . . . 1 . 1 Guns 43 | . 8 22 4 7 . 2 . . Cannons 21 | . . . 13 8 . . . . AOE 9 | . . 1 2 6 . . . . Classes Destroyed 12 | 1 4 3 3 . . 1 . . Worker 5 | . . . 1 1 . 3 . . Tunneler 2 | 2 . . . . . . . . Hauler 3 | . . . 1 1 . 1 . . Recycler 6 | . . . 1 3 1 1 . . Operator 2 | . 1 . . . . 1 . . Watcher 9 | . 2 2 . . 1 1 2 1 Swarmer 16 | . 3 3 3 7 . . . . Cutter 4 | . . . . . . 3 . 1 Grunt 36 | . 6 12 8 10 . . . . Brawler 1 | . . 1 . . . . . . Duelist 1 | . . 1 . . . . . . Sentry 18 | . . 6 8 4 . . . . Best Kill Streak 7 | 2 3 5 4 7 1 3 1 2 Combat Bots Only 7 | . 3 5 3 7 . 3 . 1 Max Kills in Single Turn 4 | 1 1 1 2 4 1 1 1 1 Gunslinging . | . . . . . . . . . Exploded 4 | . . 1 2 4 . . . . Melee 1 | . . . . . . 1 . 1 Uniques/NPCs Destroyed . | . . . . . . . . . Combat | -11 -10 -9 -9 -8 -7 -6 -6 -5 -------- Run | Scr Mat Mat Sto Mat Fac Fac Ext Fac Damage Taken 6024 | . 594 1149 942 1162 17 313 164 1683 Core 1454 | . 116 74 72 95 . . 68 1029 Absorbed by Shields . | . . . . . . . . . Regen/Repaired (Parts) 170 | . . . 78 . 71 21 . . Core Remaining (%) 81 | 100 53 . 63 82 100 . 92 . Volleys Fired 263 | 6 56 76 60 55 . 6 . 4 Largest 2 | 2 2 2 2 2 . 2 . 1 Hottest 120 | 40 120 62 78 88 . 56 . 30 Shots Fired 496 | 12 106 147 113 102 . 12 . 4 Gun 345 | 12 101 138 41 37 . 12 . 4 Cannon 139 | . . 6 71 62 . . . . Launcher 7 | . . 3 1 3 . . . . Special 5 | . 5 . . . . . . . Kinetic 465 | 12 82 144 112 99 . 12 . 4 Thermal 24 | . 24 . . . . . . . Explosive 7 | . . 3 1 3 . . . . Electromagnetic . | . . . . . . . . . Robot Hit Streak 26 | 3 26 26 11 17 . 6 . 3 Robot Miss Streak 6 | 2 4 4 3 4 . 6 . 3 Penetration Max . | . . . . . . . . . Secondary Targets 2 | . 2 . . . . . . . Max Gunslinging Chain 1 | . 1 . . . . . . . Shots Hit Robots 348 | 6 71 101 75 67 3 16 4 5 Core Hits 165 | 4 29 36 27 44 1 15 1 8 Critical Kills 1 | . . 1 . . . . . . Critical Parts Destroyed 3 | . . 1 . . . . 2 . Critical Strikes 14 | . 5 2 3 2 . . 2 . Burn 5 | . 5 . . . . . . . Destroy 2 | . . 2 . . . . . . Blast 5 | . . . 3 2 . . . . Smash 2 | . . . . . . . 2 . Melee Attacks 215 | . 12 29 18 14 33 59 17 33 Impact 137 | . 12 29 18 14 . 28 11 25 Slashing 31 | . . . . . 31 . . . Piercing 47 | . . . . . 2 31 6 8 Sneak Attacks 7 | . . . . . 1 6 . . Combat Hostiles . | . . . . . . . . . Follow-up Attacks 2 | . . . . . . . 2 . Damage Inflicted 7191 | 50 652 1781 1618 1980 131 582 188 209 Guns 3158 | 50 652 1419 378 441 . 112 . 106 Cannons 2147 | . . 127 1128 892 . . . . Explosions 949 | . . 190 112 647 . . . . Melee 897 | . . 45 . . 131 470 188 63 Ramming 40 | . . . . . . . . 40 Kinetic 5109 | 50 456 1546 1506 1333 . 112 . 106 Thermal 196 | . 196 . . . . . . . Explosive 949 | . . 190 112 647 . . . . Electromagnetic . | . . . . . . . . . Impact 453 | . . 45 . . . 210 157 41 Slashing 131 | . . . . . 131 . . . Piercing 313 | . . . . . . 260 31 22 Highest Corruption 4 | . 3 . . . 4 2 2 2 Average Corruption 2 | . 2 . . . 4 1 2 2 Corruption Purged . | . . . . . . . . . Corruption Blocked . | . . . . . . . . . Effects 20 | . 5 . . . 1 7 6 1 Message Errors 2 | . 1 . . . . 1 . . Matter Fused 6 | . . . . . 1 2 2 1 Heat Flow Errors 2 | . . . . . . 1 1 . Energy Discharges 5 | . 2 . . . . . 3 . Data Loss (minor) 2 | . 1 . . . . 1 . . Misfires 1 | . 1 . . . . . . . Alerts 2 | . . . . . . 2 . . Overload Shots . | . . . . . . . . . Overflow Damage 385 | . . 28 39 35 43 152 78 10 Projectiles 66 | . . . 31 15 . 20 . . Explosions 41 | . . 13 8 20 . . . . Melee 278 | . . 15 . . 43 132 78 10 Knockbacks 25 | . . 2 6 15 . 2 . . Impact 1 | . . . . . . 1 . . Kinetic 20 | . . 2 6 12 . . . . Secondary 4 | . . . . 3 . 1 . . Self-Inflicted Damage 72 | . . 30 23 . . . . 19 Shots 2 | . . 1 1 . . . . . Rammed 5 | . . . . . . . . 5 Targets Rammed 5 | . . . . . . . . 5 Kicked . | . . . . . . . . . Crushed . | . . . . . . . . . Highest Temperature 321 | . 57 72 321 72 . 174 253 . Average Temperature 46 | . 11 19 79 28 . 94 122 . Received Heat Transfer 1482 | . 261 453 315 405 . . 24 24 Effects 1 | . . . . . . . 1 . Energy Bleed 1 | . . . . . . . 1 . Siege Activations . | . . . . . . . . . Robots Corrupted . | . . . . . . . . . Combat Hostiles . | . . . . . . . . . Parts Fried 8 | . . 1 . . . 4 2 1 Impact Corruptions 10 | . . 1 . . . 5 3 1 Robots Melted 1 | . 1 . . . . . . . Combat Hostiles 1 | . 1 . . . . . . . Parts Melted 4 | . 4 . . . . . . . Heat Transferred 888 | . 888 . . . . . . . Parts Sabotaged . | . . . . . . . . . Parts Stolen . | . . . . . . . . . Parts Stripped . | . . . . . . . . . Power Chain Reactions . | . . . . . . . . . Missiles Intercepted . | . . . . . . . . . Alert | -11 -10 -9 -9 -8 -7 -6 -6 -5 ------- Run | Scr Mat Mat Sto Mat Fac Fac Ext Fac Peak Influence 646 | 10 214 625 646 597 402 179 159 68 Initial 271 | . 6 17 259 189 271 68 87 11 Average 225 | 2 63 230 491 370 249 96 117 43 Maximum Alert Level 2 | . 1 2 2 2 2 . . . Low Security (%) 50 | 100 97 41 . 3 16 100 100 100 Level 1 27 | . 2 41 15 53 75 . . . Level 2 21 | . . 17 84 43 8 . . . Level 3 . | . . . . . . . . . Level 4 . | . . . . . . . . . Level 5 . | . . . . . . . . . High Security . | . . . . . . . . . Max Security . | . . . . . . . . . Squads Dispatched 19 | . 1 3 4 1 1 6 . 3 Investigation 2 | . . . 1 . 1 . . . Extermination . | . . . . . . . . . Reinforcement 16 | . 1 3 3 1 . 5 . 3 Assault . | . . . . . . . . . Garrison 1 | . . . . . . 1 . . Intercept . | . . . . . . . . . Searches Triggered . | . . . . . . . . . Construction Impeded . | . . . . . . . . . Haulers Reinforced . | . . . . . . . . . Active Scanning Responses . | . . . . . . . . . Cargo Convoy Interrupts . | . . . . . . . . . Stealth | -11 -10 -9 -9 -8 -7 -6 -6 -5 --------- Run | Scr Mat Mat Sto Mat Fac Fac Ext Fac Distress Signals 7 | . . 5 . 2 . . . . Communications Jammed . | . . . . . . . . . Distress Signals . | . . . . . . . . . Times Spotted 135 | . 16 38 22 31 4 11 7 6 Peak Tracking Total 6 | . 3 5 4 6 2 3 4 4 Tactical Retreats 7 | . 1 2 . 1 2 1 . . Traps | -11 -10 -9 -9 -8 -7 -6 -6 -5 ------- Run | Scr Mat Mat Sto Mat Fac Fac Ext Fac Traps Triggered 11 | . 2 2 2 . . 2 3 . Indirectly . | . . . . . . . . . Trap Hack Attempts . | . . . . . . . . . Triggered . | . . . . . . . . . Disarmed . | . . . . . . . . . Reprogrammed . | . . . . . . . . . Reused . | . . . . . . . . . Traps Extracted . | . . . . . . . . . Installed . | . . . . . . . . . Triggered . | . . . . . . . . . Machines | -11 -10 -9 -9 -8 -7 -6 -6 -5 ---------- Run | Scr Mat Mat Sto Mat Fac Fac Ext Fac Machines Disabled 8 | . . 2 5 1 . . . . Max in Single Turn 1 | . . 1 1 1 . . . . Garrison Access 2 | . . . . 1 1 . . . Machines Sabotaged . | . . . . . . . . . Garrisons Compromised . | . . . . . . . . . Overloaded Fab Kills . | . . . . . . . . . Hacking | -11 -10 -9 -9 -8 -7 -6 -6 -5 --------- Run | Scr Mat Mat Sto Mat Fac Fac Ext Fac Machines Accessed 51 | . 6 4 6 9 9 7 8 2 Terminals 34 | . 5 . 4 5 6 5 8 1 Fabricators . | . . . . . . . . . Repair Stations 4 | . . 1 1 . 1 1 . . Recycling Units 8 | . 1 2 1 2 1 . . 1 Scanalyzers 3 | . . 1 . 1 . 1 . . Garrison Access 2 | . . . . 1 1 . . . Total Hacks 154 | . 19 10 17 23 25 36 22 2 Successful 105 | . 12 7 11 15 15 25 18 2 Failed 49 | . 7 3 6 8 10 11 4 . Catastrophic 5 | . . . 1 3 1 . . . Database Lockouts . | . . . . . . . . . Manual 77 | . 18 . 6 16 9 20 8 . Terminals 113 | . 17 . 11 16 19 27 22 1 Fabricators . | . . . . . . . . . Repair Stations 9 | . . 3 2 . 2 2 . . Recycling Units 13 | . 2 3 4 2 1 . . 1 Scanalyzers 15 | . . 4 . 4 . 7 . . Garrison Access 4 | . . . . 1 3 . . . Terminal Hacks 56 | . 6 . 4 6 9 14 16 1 Record 5 | . . . . . 2 . 3 . Part Schematic 5 | . . . . . 2 2 1 . Robot Analysis 3 | . 2 . . 1 . . . . Prototype ID Bank 3 | . . . 1 . 1 . 1 . Open Door 6 | . . . 1 . . 1 4 . Open DSF 2 | . . . . . 1 . . 1 Level Access Points 3 | . . . . 1 . 1 1 . Branch Access Points 4 | . 1 . . 1 . 1 1 . Emergency Access Points 2 | . . . . 1 . 1 . . Terminal Index 2 | . . . . . . 1 1 . Fabricator Index 1 | . . . . . . 1 . . Scanalyzer Index 2 | . . . . 1 1 . . . Alert Level 6 | . . . 1 1 1 2 1 . Unreport Threat 1 | . . . 1 . . . . . Locate Traps 4 | . 2 . . . . 1 1 . Hauler Manifests 1 | . . . . . . 1 . . Registered Components 1 | . . . . . 1 . . . Registered Prototypes 1 | . . . . . . . 1 . Zone Layout 4 | . 1 . . . . 2 1 . Fabricator Hacks . | . . . . . . . . . Repair Station Hacks 7 | . . 1 2 . 2 2 . . Scan Component 4 | . . 1 1 . 1 1 . . Repair 3 | . . . 1 . 1 1 . . Recycling Unit Hacks 10 | . 1 3 2 2 1 . . 1 Report Inventory 8 | . 1 2 1 2 1 . . 1 Retrieve Matter 1 | . . 1 . . . . . . Retrieve Components 1 | . . . 1 . . . . . Scanalyzer 14 | . . 3 . 4 . 7 . . Insert Component 8 | . . 2 . 2 . 4 . . Analyze 6 | . . 1 . 2 . 3 . . Garrison Access Hacks 2 | . . . . 1 1 . . . Seal Access 2 | . . . . 1 1 . . . Unauthorized Hacks 16 | . 5 . 3 2 2 2 2 . Terminals 16 | . 5 . 3 2 2 2 2 . Botnet 15 | . 4 . 3 2 2 2 2 . Operators 1 | . 1 . . . . . . . Fabricators . | . . . . . . . . . Repair Stations . | . . . . . . . . . Recycling Units . | . . . . . . . . . Scanalyzers . | . . . . . . . . . Garrison Access . | . . . . . . . . . Data Cores Recovered 1 | . 1 . . . . . . . Used . | . . . . . . . . . Hacking Detections 35 | . 4 2 5 8 5 6 5 . Full Trace Events 3 | . . . 2 . 1 . . . Feedback Events . | . . . . . . . . . Feedback Blocked . | . . . . . . . . . Robot Schematics Acquired . | . . . . . . . . . Robots Built . | . . . . . . . . . Authchips . | . . . . . . . . . Time . | . . . . . . . . . Total Robot Build Rating . | . . . . . . . . . Part Schematics Acquired 11 | . . 1 . 2 2 5 1 . Parts Built . | . . . . . . . . . Authchips . | . . . . . . . . . Time . | . . . . . . . . . Total Part Build Rating . | . . . . . . . . . Parts Repaired 3 | . . . 1 . 1 1 . . Time 61 | . . . 32 . 16 13 . . Parts Recycled . | . . . . . . . . . Recycled Matter . | . . . . . . . . . Retrieved Matter . | . . . . . . . . . Retrieved Components 3 | . . . 3 . . . . . Parts Scanalyzed 6 | . . 2 . 1 . 3 . . Part Schematics Acquired 6 | . . 1 . 2 . 3 . . Parts Damaged . | . . . . . . . . . Bothacking | -11 -10 -9 -9 -8 -7 -6 -6 -5 ------------ Run | Scr Mat Mat Sto Mat Fac Fac Ext Fac Used RIF Installer . | . . . . . . . . . Robots Hacked . | . . . . . . . . . Non-combat . | . . . . . . . . . Combat . | . . . . . . . . . Robot Hacks Applied . | . . . . . . . . . Relay Couplers Released . | . . . . . . . . . Fabnet Peak Effective % . | . . . . . . . . . Robots Rewired . | . . . . . . . . . Allies Hacked . | . . . . . . . . . Hacks Repelled . | . . . . . . . . . Allies | -11 -10 -9 -9 -8 -7 -6 -6 -5 -------- Run | Scr Mat Mat Sto Mat Fac Fac Ext Fac Total Allies 4 | . . . . . . . 4 . Largest Group 3 | . . . . . . . 3 . Highest-Rated Group 109 | . . . . . . . 109 . Highest-Rated Ally 39 | . . . . . . . 39 . Total Orders . | . . . . . . . . . Ally Attacks 10 | . . . . . . . 10 . Total Damage 141 | . . . . . . . 141 . Kills 1 | . . . . . . . 1 . Allies Corrupted . | . . . . . . . . . Allies Melted 1 | . . . . . . . 1 . Intel | -11 -10 -9 -9 -8 -7 -6 -6 -5 ------- Run | Scr Mat Mat Sto Mat Fac Fac Ext Fac Robot Analysis Total 3 | . 2 . . 1 . . . . Derelict Logs Recovered . | . . . . . . . . . Drone Launches . | . . . . . . . . . Drone Recoveries . | . . . . . . . . . Exploration | -11 -10 -9 -9 -8 -7 -6 -6 -5 ------------- Run | Scr Mat Mat Sto Mat Fac Fac Ext Fac Turns Passed 7793 | 124 1426 1587 1004 1172 953 702 430 395 Spaces Moved 6331 | 78 731 937 539 729 1134 1178 525 480 Core 53 | 3 . . . . . . . 50 Treads 666 | . 602 54 10 . . . . . Legs 204 | 75 129 . . . . . . . Wheels 2151 | . . 883 529 729 10 . . . Hover . | . . . . . . . . . Flight 3257 | . . . . . 1124 1178 525 430 Fastest Speed 28 | 50 120 105 105 120 31 31 31 28 Average Speed 77 | 117 152 117 123 120 31 31 31 31 Slowest Speed 320 | 120 160 320 320 120 120 34 31 110 Overloaded Moves . | . . . . . . . . . Propulsion Burnouts . | . . . . . . . . . Robots Hopped 13 | . . . . . 1 7 5 . Cave-ins Triggered . | . . . . . . . . . Exploration Rate (%) 45 | 5 98 71 71 55 16 30 50 9 Regions Visited 8 Branch Regions 2 Pre-discovered Areas . | . . . . . . . . . Known Exits Taken 5 | . . 1 . 1 1 1 1 . Unknown Exits Taken 3 | 1 1 . 1 . . . . . Scrap Searched . | . . . . . . . . . Spaces Dug 193 | . 16 51 20 18 27 35 5 21 Terrain Destroyed 252 | . 17 58 20 69 27 35 5 21 Melee 151 | . 12 28 9 14 27 35 5 21 Projectile 13 | . 5 . . 8 . . . . AOE 88 | . . 30 11 47 . . . . Terrain Rammed . | . . . . . . . . . Walls Destroyed . | . . . . . . . . . Machines Disabled . | . . . . . . . . . Actions | -11 -10 -9 -9 -8 -7 -6 -6 -5 --------- Run | Scr Mat Mat Sto Mat Fac Fac Ext Fac Total 8358 | 97 914 1239 720 892 1679 1392 763 662 Wait 1211 | . 73 128 45 54 471 145 175 120 Move 6300 | 77 730 936 538 728 1131 1164 516 480 Hop 10 | . . . . . 1 6 3 . Pick Up 73 | 7 14 17 13 7 6 4 . 5 Fast Attach 44 | 7 2 7 4 6 3 6 2 7 Attach 28 | . 2 4 6 1 7 3 . 5 Detach 2 | . 1 . . . . . . 1 Swap 94 | . 15 25 22 15 8 5 . 4 Drop 77 | . 9 17 12 12 19 2 2 4 Fire 263 | 6 56 76 60 55 . 6 . 4 Melee 196 | . 12 29 18 14 33 51 11 28 Ram 4 | . . . . . . . . 4 Kick . | . . . . . . . . . Crush . | . . . . . . . . . Escape Stasis 54 | . . . . . . . 54 . Rewire 2 | . . . 2 . . . . . Trap . | . . . . . . . . . Miscellaneous . | . . . . . . . . . Route ------- -11/Scrapyard -10/Materials (discovered 5 exits: *Mat x3 / *Min x2) -9/Materials (discovered 4 exits: *Mat x2 / *Sto x2) -9/Storage -8/Materials (discovered 3 exits: *Fac x3) -7/Factory (discovered 3 exits: *Fac x2 / *Low) -6/Factory (discovered 8 exits: Fac x4 / Low x2 / *Ext x2) -6/Extension (discovered 3 exits: *Fac x2 / Cet) -5/Factory History --------- Turn | Location | Event 17 | -11/Scrapyard | Discovered new exit (range 15) 125 | -11/Scrapyard | Entered Materials 195 | -10/Materials | Discovered new exit (range 16) 300 | -10/Materials | Discovered new exit (range 4) 311 | -10/Materials | Build established: Mutant 787 | -10/Materials | Discovered new exit (range 8) 1130 | -10/Materials | Identified exit to Mines 1130 | -10/Materials | Discovered new exit (range 7) 1551 | -10/Materials | Entered another Materials area 1551 | -9/Materials | Evolved 2 slots: Propulsion x1, Utility x1 2231 | -9/Materials | Discovered new exit (range 15) 2543 | -9/Materials | Discovered new exit (range 3) 2562 | -9/Materials | Identified exit to Storage 2760 | -9/Materials | Discovered new exit (range 14) 3131 | -9/Materials | Discovered exit to Storage (range 6) 3138 | -9/Materials | Entered Storage 3340 | -9/Storage | Repaired Arm. Wheel 3768 | -9/Storage | Discovered new exit (range 14) 3846 | -9/Storage | Lost 4 parts (1n1u2w) 4142 | -9/Storage | Entered Materials 4142 | -8/Materials | Evolved 2 slots: Propulsion x1, Utility x1 4486 | -8/Materials | Discovered new exit (range 8) 4543 | -8/Materials | Identified exit to Factory 4968 | -8/Materials | Destroyed 7 combat bots 5314 | -8/Materials | Entered Factory 5314 | -7/Factory | Evolved 2 slots: Utility x2 5729 | -7/Factory | Build established: Hacker-Sprinter 6066 | -7/Factory | Discovered new exit (range 4) 6067 | -7/Factory | Identified exit to Lower Caves 6098 | -7/Factory | Repaired Arm. Wheel 6178 | -7/Factory | Discovered new exit (range 6) 6179 | -7/Factory | Discovered new exit (range 11) 6179 | -7/Factory | Identified exit to Factory 6267 | -7/Factory | Entered another Factory area 6267 | -6/Factory | Evolved 2 slots: Utility x2 6383 | -6/Factory | Repaired Lgt. Ion Engine? 6538 | -6/Factory | Identified exit to Lower Caves 6538 | -6/Factory | Identified exit to Extension 6538 | -6/Factory | Identified exit to Factory 6741 | -6/Factory | Build established: Hacker-Scout 6896 | -6/Factory | Garrison activated, responded to threat 6969 | -6/Factory | Entered Extension 7008 | -6/Extension | Spotted B-75 Beast 7061 | -6/Extension | Identified exit to Cetus 7203 | -6/Extension | Rescued a captive Derelict 7301 | -6/Extension | Rescued a captive Derelict 7371 | -6/Extension | Build established: Hacker-Sprinter 7377 | -6/Extension | Rescued a captive Derelict 7378 | -6/Extension | Rescued a captive Derelict 7393 | -6/Extension | Spotted B-75 Beast 7399 | -6/Extension | Entered Factory 7399 | -5/Factory | Evolved 2 slots: Propulsion x1, Utility x1 7719 | -5/Factory | Identified exit to DSF 7761 | -5/Factory | Core integrity fell below 50% 7783 | -5/Factory | Core integrity fell below 20% 7794 | -5/Factory | Core destroyed Last Messages --------------- 07766_ U-05 Engineer lays Concrete. 07767_ Transmission Jammer severed. 07769_ U-05 Engineer builds a Wall. 07770_ Slammed into W-25 Informer. 07771_ W-25 Informer destroyed. [Achievement: Fist Fight] 07771_ Destabilizing: System corrupted (+2). 07772_ Acquired 40 matter. 07772_ Hacking Suite severed. 07773_ Acquired Imp. Signal Interpreter. 07775_ Acquired Imp. Sensor Array. 07777_ System corrupted: Matter fused (-7). 07777_ ALERT: Suspicious intruders detected, dispatching Cutter reinforcements to area. 07779_ Connecting with DSF Access... 07787_ Imp. Sensor Array destroyed. 07789_ Imp. Signal Interpreter severed. 07791_ Adv. Signal Interpreter severed. 07793_ Slammed into C-35 Carver. 07794_ Destabilizing: Core damaged (-40). Map ----- +----------------------------------------------------+ | | | | | | | | | | | | | | | | | | | | | | | | | | | ?????????????????????????????????????????????????? | | ?????????????????????????????????????????????????? | | ?????????????????????????????????????????????????? | | ?????????????????????????????????????????????????? | | ?????????????????????????????????????????????????? | | ?????????????????????????????????????????????????? | | ?????????????????????????????????????????????????? | | ???????#########?????????????????????????????????? | | ??????## #?????????????????????????????????? | | ??????# # ##????????????????????????????????? | | ?????## ###??##############??????????????? | | ????### # #??# c #??????????????? | | ???## = #??# c@ #??????????????? | | #+## ##?# """""" #??????????????? | | "#?# """""" #??????????????? | | "#?# """""" #??????????????? | | "#?# """""" #??????????????? | | #+"" "#?# !#??????????????? | | ### # = "#?# """""" #??????????????? | | ????## ##%! ##?# """""" #??????????????? | | ????## ##"# """"""#??# """""" #??????????????? | | ?????# #### # ##??# """""" #??????????????? | | ?????# #??############ #??????????????? | | ????## ##????????##T #######+#######????????###+## | | ##### ########## ? | | != H % ?? | | ##### ########## """ """?????""" | | ????#####???????## """??????"" """ | | ????############## """?????""" """ | | ????# [ # ######### ??? | | ????# # #^ # """ ??????" """ | | ????# """""" # # // # """ "?"???" """ | | ????# """""" * # # // # ""? "?" """ """ | | ????# """""" + # // # ? ? | | ????# """""" # # # """ """ """ """ | | ????# # # """ # """ """ """ """ | | ????# """""" # # """ # """ """ """ """ | +----------------------------------------------------+ Best States ------------- Heat Dissipation 48 Energy Generation 14 Energy Capacity 275 Matter Stores 400 Matter Capacity 400 Sight Range 22 Robot Scan Range 16 Terrain Scan Density 10 Jamming Range 12 Additional Mass Support 12 Armor Coverage 300 Core Shielding 20 Evasion (%) 64 Recoil Reduction 2 Offensive Hacking 30 Defensive Hacking 10 Item Schematics ----------------- Imp. Flight Unit | -9/Materials | Scanalyzed Hacking Suite | -8/Materials | Scanalyzed System Shield | -8/Materials | Scanalyzed Imp. Titanium Leg | -7/Factory | Hacked Med. Storage Unit | -7/Factory | Hacked Mni. Grenade Launcher | -6/Factory | Scanalyzed Arm. Wheel | -6/Factory | Scanalyzed Imp. Sensor Array | -6/Factory | Scanalyzed Lgt. Fission Core | -6/Factory | Hacked Cesium-ion Thruster | -6/Factory | Hacked Lyr. Medium Armor Plating | -6/Extension | Hacked Robot Schematics ------------------ None Fabricated ------------ Nothing Alien Tech Used ----------------- None Achievements -------------- Fist Fight Part-time Excavator Prolific Hacker Quantum Hacking True Hacker root@ Challenges ------------ None Game ------ Seed TitaniumThiefAxe Manual? 0 Play Time 03:29:22 Cumulative 46.2 hours Start 2022.09.01 @ 00:39:39 End 2022.09.03 @ 15:37:44 Sessions 6 Manual Loads 0 Difficulty Rogue Special Mode None Game No. 12 Rogue 12 Adventurer 0 Explorer 0 Win Type - Total 0 Types 0/0/0/0/0/0/0/0/0 Lore% 27 Gallery% 26 Achievement% 23 Wizard Run 0 Options --------- ASCII 0 Keyboard 0 Movement Mouse Keybinds 0 Fullscreen 1 Font 24/Smallcaps Map View 76x50 Tactical HUD 1 Map Filters NONE Filters NONE Steam 1 RUN: 3d832948-667e-44e2-aca5-34224040f174